bitfinex/quotes_SOLUSD_20220109
["timestamp","ask_amount","ask_price","bid_price","bid_amount"]
[1641723480952,137.72597133,138.25,138.19,77.1835]
[1641723481153,137.72597133,138.25,138.18,72.358]
[1641723481356,20.313575,138.24,138.17,23.5569]
[1641723481552,20.313575,138.24,138.12,76.8099]
[1641723481553,22.31861265,138.24,138.12,76.8099]
[1641723481752,3.65849078,138.24,138.12,76.8099]
[1641723481954,3.65849078,138.24,138.12,87.6737]
[1641723482155,1.99397168,138.2,138.12,87.6737]
[1641723482357,1.99397168,138.2,138.13,23.1353551]
[1641723483056,1.98806399,138.19,138.15,10.8607]
[1641723483459,1.98806399,138.19,138.13,23.1353551]
[1641723483658,1.99001187,138.2,138.13,23.1353551]
[1641723483858,12.85331187,138.2,138.13,33.9983551]
[1641723484489,1.98540819,138.19,138.13,23.1353551]
[1641723484886,1.98540819,138.19,138.13,33.9982551]
[1641723485283,1.99413466,138.18,138.13,33.9982551]
[1641723485485,1.99413466,138.18,138.13,58.2255551]
[1641723485983,1.99413466,138.18,138.13,47.3626551]
[1641723487285,1.99413466,138.18,138.15,10.8614]
[1641723487485,1.99413466,138.18,138.13,47.3626551]
[1641723488285,1.99413466,138.18,138.14,10.8617]
[1641723488886,1.99108356,138.19,138.14,10.8617]
[1641723489489,2.04845644,138.18,138.14,10.8617]
[1641723491391,2.04932236,138.19,138.14,10.8617]
[1641723492196,2.04922093,138.2,138.14,10.8617]
[1641723493799,2.05042239,138.19,138.14,10.8617]
[1641723494300,2.05042239,138.19,138.13,68.6555551]
[1641723494799,2.05064252,138.18,138.13,68.6555551]
[1641723495498,2.05126801,138.17,138.13,68.6555551]
[1641723496801,2.05160885,138.16,138.13,68.6555551]
[1641723497001,4.1032177,138.19,138.14,6.03219997]
[1641723497202,4.1032177,138.19,138.16,10.8576]
[1641723497403,4.1032177,138.19,138.17,3.03013155]
[1641723497802,4.10235417,138.22,138.17,3.03013155]
[1641723498700,4.10205466,138.23,138.17,3.03013155]
[1641723499801,5.75550779,138.23,138.17,3.03013155]
[1641723500002,16.61620779,138.23,138.17,3.03013155]
[1641723500200,16.61620779,138.23,138.14,10.8618]
[1641723500600,3.0,138.22,138.14,10.8618]
[1641723501003,4.10237818,138.22,138.14,10.8618]
[1641723502203,4.10232967,138.21,138.14,10.8618]
[1641723504207,4.10232967,138.21,138.13,23.1353551]
[1641723504208,36.2188,138.2,138.13,23.1353551]
[1641723504409,4.10232967,138.21,138.13,23.1353551]
[1641723504811,10.8647,138.17,138.13,23.1353551]
[1641723505313,10.8647,138.17,138.1,23.7666]
[1641723506113,10.8647,138.17,138.08,102.0185]
[1641723506313,10.8647,138.17,138.09,23.63501011]
[1641723506713,4.09047696,138.15,138.09,23.63501011]
[1641723506914,14.95747696,138.15,138.09,23.63501011]
[1641723507114,14.95747696,138.15,138.07,10.43]
[1641723507317,22.70147696,138.15,138.07,21.2978]
[1641723507515,22.70147696,138.15,138.07,10.8678]
[1641723507717,22.70147696,138.15,138.04,10.43]
[1641723508318,22.70147696,138.15,138.05,37.38598411]
[1641723508518,3.0,138.14,138.05,37.38598411]
[1641723508718,14.93495065,138.13,138.05,37.38598411]
[1641723509520,4.07519983,138.15,138.05,37.38598411]
[1641723509820,10.868,138.14,138.05,113.28828411]
[1641723510320,82.49097245,138.16,138.05,113.28828411]
[1641723510744,93.35757245,138.16,138.05,113.28828411]
[1641723511146,93.35757245,138.16,138.05,138.23238411]
[1641723511643,93.32602079,138.16,138.05,138.23238411]
[1641723512745,82.45942079,138.16,138.05,148.66238411]
[1641723512946,4.08767245,138.16,138.05,148.66238411]
[1641723513353,8.18965674,138.15,138.05,148.66238411]
[1641723513547,8.18965674,138.15,138.06,3.0]
[1641723513746,8.18965674,138.15,138.1,10.863]
[1641723513947,8.18965674,138.15,138.11,30.68276319]
[1641723514148,4.09379603,138.17,138.11,30.68276319]
[1641723514949,4.09379603,138.17,138.14,10.8605]
[1641723515149,4.09285684,138.2,138.15,6.06233152]
[1641723515957,14.95585684,138.2,138.15,6.06233152]
[1641723516151,4.09285684,138.2,138.15,6.06233152]
[1641723516950,4.09285684,138.2,138.15,16.92373152]
[1641723518852,4.09122259,138.23,138.15,16.92373152]
[1641723522758,4.09122259,138.23,138.16,3.0]
[1641723522956,4.09122259,138.23,138.19,10.8579]
[1641723524158,4.09069087,138.24,138.19,10.8579]
[1641723524959,169.83634866,138.26,138.19,10.8579]
[1641723527559,4.09014745,138.26,138.23,10.8548]
[1641723527760,4.09014745,138.26,138.24,6.06233152]
[1641723527960,4.08614293,138.27,138.24,6.06233152]
[1641723528560,4.08614293,138.27,138.2,36.1813]
[1641723528762,4.08614293,138.27,138.18,97.0367]
[1641723529160,4.08614293,138.27,138.19,3.0]
[1641723529360,4.08614293,138.27,138.23,10.8551]
[1641723531665,4.08309553,138.28,138.23,10.8551]
[1641723533062,14.93949553,138.28,138.21,27.48229355]
[1641723533263,18.7914,138.28,138.18,10.43]
[1641723533562,20.44485313,138.28,138.18,10.43]
[1641723533762,20.44485313,138.28,138.15,10.43]
[1641723533965,4.08175701,138.25,138.15,13.43]
[1641723534163,10.8621,138.2,138.16,22.65760747]
[1641723535162,10.8613,138.21,138.16,22.65760747]
[1641723535364,4.08175701,138.25,138.16,22.65760747]
[1641723535964,4.08175701,138.25,138.17,0.25]
[1641723536364,77.58286825,138.26,138.21,10.8565]
[1641723536567,4.08156825,138.26,138.21,10.8565]
[1641723536765,4.08156825,138.26,138.17,23.0086]
[1641723536992,3.0,138.25,138.17,23.0086]
[1641723537393,10.8622,138.21,138.16,22.65760747]
[1641723539901,10.8608,138.22,138.16,22.65760747]
[1641723540102,4.08743983,138.24,138.16,22.65760747]
[1641723540599,4.08743983,138.24,138.16,35.1713606]
[1641723541000,10.8598,138.23,138.17,3.0]
[1641723541206,10.8598,138.23,138.16,22.65760747]
[1641723541503,3.0,138.22,138.16,22.65760747]
[1641723541704,36.2109,138.22,138.16,22.65760747]
[1641723541901,3.0,138.21,138.16,22.65760747]
[1641723542100,10.8633,138.19,138.16,22.65760747]
[1641723542301,11.18547732,138.21,138.16,22.65760747]
[1641723542501,11.18547732,138.21,138.12,108.5824]
[1641723542702,11.18547732,138.21,138.12,21.2939]
[1641723543001,11.18547732,138.21,138.08,23.179]
[1641723543203,7.09273866,138.21,138.08,23.179]
[1641723543611,7.09273866,138.21,138.09,22.50859014]
[1641723544004,4.09778392,138.17,138.09,22.50859014]
[1641723544207,4.09778392,138.17,138.12,10.8638]
[1641723544405,4.09778392,138.17,138.09,22.50859014]
[1641723545205,4.09778392,138.17,138.11,10.864]
[1641723545907,4.09773633,138.18,138.12,3.0]
[1641723546506,4.09517671,138.2,138.14,36.1947]
[1641723546709,4.09517671,138.2,138.15,24.83537077]
[1641723546907,4.09517671,138.2,138.15,27.83537077]
[1641723547306,4.09455583,138.22,138.15,27.83537077]
[1641723547508,4.09455583,138.22,138.18,10.8583]
[1641723548008,8.18950143,138.23,138.19,3.0]
[1641723548708,8.18950143,138.23,138.21,41.46730261]
[1641723548907,8.18950143,138.23,138.21,10.8546]
[1641723549110,4.09459827,138.24,138.17,3.0]
[1641723549312,4.09459827,138.24,138.16,97.372]
[1641723549908,4.09459827,138.24,138.17,26.74337152]
[1641723550810,4.09459827,138.24,138.2,10.8575]
[1641723552311,4.09459827,138.24,138.19,10.8584]
[1641723552711,4.09459827,138.24,138.17,23.74337152]
[1641723552912,4.09558922,138.23,138.17,23.74337152]
[1641723553312,4.09558922,138.23,138.2,10.8574]
[1641723554416,4.09484511,138.24,138.2,10.8574]
[1641723558422,4.09610138,138.23,138.2,10.8574]
[1641723559425,4.09611783,138.24,138.2,10.8574]
[1641723560824,4.09611783,138.24,138.21,3.0]
[1641723561025,4.09674776,138.23,138.22,10.854]
[1641723561426,4.09674776,138.23,138.22,57.854]
[1641723561824,4.09674776,138.23,138.22,60.854]
[1641723562029,4.0959317,138.26,138.23,28.19740286]
[1641723562229,4.0959317,138.26,138.24,10.8521]
[1641723564059,4.09545176,138.28,138.24,10.8521]
[1641723564259,4.09545176,138.28,138.26,10.8481]
[1641723564661,4.09545176,138.28,138.27,42.0]
[1641723564859,4.09545176,138.28,138.27,39.0]
[1641723565459,4.09443568,138.29,138.27,49.8489]
[1641723566260,6.06439994,138.28,138.27,21.07277148]
[1641723566459,4.09069754,138.3,138.27,21.07277148]
[1641723567459,6.14317764,138.31,138.29,48.0]
[1641723567661,6.14317764,138.31,138.3,72.90320898]
[1641723567860,6.13481294,138.33,138.3,75.90320898]
[1641723568661,6.13481294,138.33,138.3,42.90320898]
[1641723569562,6.12851376,138.38,138.3,42.90320898]
[1641723570563,10.21325528,138.38,138.3,42.90320898]
[1641723571163,6.12851376,138.38,138.3,42.90320898]
[1641723572366,6.12851376,138.38,138.31,0.25]
[1641723572567,6.12851376,138.38,138.34,10.845]
[1641723573168,6.12851376,138.38,138.3,29.05880898]
[1641723573367,10.26734073,138.39,138.3,29.05880898]
[1641723573568,3.57734073,138.39,138.3,29.05880898]
[1641723573767,5.23079386,138.39,138.3,39.90750898]
[1641723573967,14.25886045,138.4,138.3,39.90750898]
[1641723574367,10.8473,138.38,138.3,39.90750898]
[1641723577870,10.8473,138.38,138.27,10.43]
[1641723577871,16.95911843,138.38,138.27,10.43]
[1641723578071,27.40357156,138.38,138.24,98.0294]
[1641723578275,27.40357156,138.38,138.16,190.7459]
[1641723578276,10.43,138.37,138.16,190.7459]
[1641723578476,10.856,138.29,138.17,107.324]
[1641723578873,10.856,138.29,138.18,24.7867442]
[1641723579174,10.856,138.29,138.19,10.43]
[1641723579374,10.856,138.29,138.2,0.25]
[1641723579577,10.856,138.29,138.2,10.68]
[1641723580174,10.856,138.29,138.2,10.43]
[1641723580576,13.8551,138.28,138.23,10.8543]
[1641723580778,13.8551,138.28,138.21,24.8036]
[1641723582005,10.8551,138.28,138.21,24.8036]
[1641723582578,42.29798252,138.33,138.21,35.66]
[1641723582775,6.11788252,138.33,138.21,35.66]
[1641723584176,7.77133565,138.33,138.21,35.66]
[1641723584377,7.77133565,138.33,138.21,10.8564]
[1641723584777,10.8559,138.27,138.21,10.8564]
[1641723585279,10.8559,138.27,138.2,21.2873]
[1641723586578,3.0,138.26,138.2,21.2873]
[1641723587280,10.8568,138.26,138.2,21.2873]
[1641723587480,3.0,138.25,138.2,21.2873]
[1641723588079,10.8565,138.26,138.2,21.2873]
[1641723589511,10.8558,138.27,138.2,21.2873]
[1641723589882,23.7778,138.3,138.2,21.2873]
[1641723590081,76.9515,138.31,138.2,21.2873]
[1641723590383,87.8042,138.31,138.25,10.8527]
[1641723590583,10.8527,138.31,138.22,36.1755]
[1641723591383,112.0883,138.34,138.22,36.1755]
[1641723591583,16.97422063,138.32,138.23,35.6228]
[1641723591982,16.97422063,138.32,138.24,29.67571413]
[1641723592682,16.97422063,138.32,138.24,40.52991413]
[1641723593886,16.97422063,138.32,138.24,29.67571413]
[1641723595885,16.47422063,138.32,138.24,29.67571413]
[1641723596887,3.0,138.31,138.24,29.67571413]
[1641723597086,10.8541,138.29,138.24,40.52981413]
[1641723597389,3.0,138.31,138.24,40.52981413]
[1641723598490,3.0,138.3,138.24,40.52981413]
[1641723598689,36.1809,138.33,138.24,40.52981413]
[1641723598889,10.8527,138.31,138.24,40.52981413]
[1641723599589,112.0883,138.34,138.24,40.52981413]
[1641723599790,10.8514,138.33,138.24,40.52981413]
[1641723599990,87.4554,138.34,138.24,40.52981413]
[1641723600595,76.4879,138.34,138.24,40.52981413]
[1641723600792,87.3381,138.34,138.24,40.52981413]
[1641723601291,87.3381,138.34,138.27,10.8519]
[1641723601891,87.3381,138.34,138.25,24.258]
[1641723603299,87.3381,138.34,138.28,10.8507]
[1641723603593,10.8502,138.34,138.28,10.8507]
[1641723604297,10.8502,138.34,138.25,24.258]
[1641723604528,3.0,138.33,138.25,24.258]
[1641723604721,10.855,138.29,138.24,29.67571413]
[1641723605522,10.855,138.29,138.19,10.43]
[1641723605725,1.65345313,138.28,138.18,48.7139]
[1641723605925,10.8591,138.23,138.18,48.7139]
[1641723606723,10.8591,138.23,138.17,27.24883732]
[1641723607523,10.8591,138.23,138.17,38.10853732]
[1641723609525,3.0,138.22,138.17,10.8597]
[1641723609725,22.1378,138.22,138.13,24.1274]
[1641723610329,22.1378,138.22,138.1,10.43]
[1641723610531,22.1378,138.22,138.11,22.6490345]
[1641723610726,23.79125313,138.22,138.11,22.6490345]
[1641723610928,22.1378,138.22,138.11,22.6490345]
[1641723611927,13.8598,138.22,138.11,22.6490345]
[1641723613030,13.8598,138.22,138.11,33.5134345]
[1641723613229,13.8598,138.22,138.11,115.03688763]
[1641723613429,3.0,138.22,138.12,0.51]
[1641723613628,34.4943,138.27,138.12,13.94]
[1641723613829,240.58276752,138.28,138.13,25.53095313]
[1641723614028,240.58276752,138.28,138.21,10.8557]
[1641723614230,164.55456752,138.28,138.22,26.76512244]
[1641723615731,164.55456752,138.28,138.22,37.62062244]
[1641723616532,79.6295,138.32,138.22,46.05962244]
[1641723616732,10.43,138.34,138.28,10.8497]
[1641723616933,94.7,138.35,138.28,42.05546771]
[1641723617131,94.7,138.35,138.28,31.20576771]
[1641723618032,94.7,138.35,138.28,42.05546771]
[1641723618234,94.7,138.35,138.29,3.0]
[1641723618431,78.24,138.38,138.29,3.0]
[1641723618633,20.64665665,138.4,138.31,36.1505]
[1641723618936,2.04280661,138.32,138.31,36.1505]
[1641723619932,2.04280661,138.32,138.28,31.20576771]
[1641723620332,2.04280661,138.32,138.29,10.8476]
[1641723620534,2.04280661,138.32,138.29,11.0976]
[1641723620934,2.04092961,138.33,138.3,36.1542]
[1641723621338,111.4221,138.42,138.3,36.1542]
[1641723621638,111.4221,138.42,138.31,3.0]
[1641723621834,111.4221,138.42,138.36,10.8418]
[1641723622035,36.04,138.42,138.36,10.8418]
[1641723625739,36.04,138.45,138.36,10.8418]
[1641723626944,263.5,138.5,138.36,12.49525313]
[1641723626945,36.04,138.48,138.36,12.49525313]
[1641723627144,36.04,138.48,138.36,86.88745313]
[1641723627643,10.8411,138.47,138.36,86.88745313]
[1641723628443,10.8411,138.47,138.39,10.8411]
[1641723628643,3.0,138.46,138.39,10.8411]
[1641723628846,36.04,138.48,138.39,10.8411]
[1641723630947,42.617153,138.47,138.39,10.8411]
[1641723631148,11.393893,138.46,138.39,10.8411]
[1641723631350,20.343278,138.46,138.39,10.8411]
[1641723631548,56.383278,138.48,138.39,10.8411]
[1641723631850,20.343278,138.47,138.38,10.8419]
[1641723632048,37.69345313,138.48,138.38,10.8419]
[1641723632248,36.04,138.48,138.38,10.8419]
[1641723633251,46.88,138.48,138.37,10.8426]
[1641723634050,3.0,138.47,138.37,10.8426]
[1641723634351,10.8419,138.45,138.37,10.8426]
[1641723634552,3.0,138.47,138.37,10.8426]
[1641723635351,3.0,138.47,138.42,10.8376]
[1641723637153,36.04,138.49,138.42,10.8376]
[1641723637352,71.284622,138.48,138.41,22.86668372]
[1641723637553,36.04,138.48,138.41,12.02908372]
[1641723637754,25.230329,138.47,138.41,12.02908372]
[1641723637953,25.230329,138.47,138.36,121.2456]
[1641723638153,13.8405,138.47,138.36,121.2456]
[1641723638755,3.0,138.47,138.36,121.2456]
[1641723638956,3.0,138.47,138.37,67.79868188]
[1641723639154,3.0,138.47,138.37,31.66618188]
[1641723639955,3.0,138.47,138.4,31.8650059]
[1641723641857,13.8407,138.47,138.4,42.7050059]
[1641723642063,3.0,138.47,138.4,42.7050059]
[1641723643962,36.04,138.49,138.4,42.7050059]
[1641723644566,3.0,138.48,138.4,42.7050059]
[1641723646694,13.8397,138.48,138.4,42.7050059]
[1641723647494,3.0,138.48,138.4,42.7050059]
[1641723647894,3.0,138.48,138.41,0.25]
[1641723648295,3.0,138.48,138.44,31.3684189]
[1641723648995,46.8773,138.51,138.44,31.3684189]
[1641723649195,8.945517,138.5,138.44,31.3684189]
[1641723649396,44.985517,138.5,138.44,31.3684189]
[1641723649699,8.945517,138.49,138.44,31.3684189]
[1641723650294,8.945517,138.49,138.44,42.2054189]
[1641723650895,8.945517,138.49,138.44,31.3684189]
[1641723652099,46.878,138.5,138.44,31.3684189]
[1641723652307,20.33892,138.49,138.44,31.3684189]
[1641723652497,10.8404,138.47,138.44,31.3684189]
[1641723652697,6.06439994,138.46,138.44,31.3684189]
[1641723655800,22.02097013,138.49,138.44,31.3684189]
[1641723656198,6.13911706,138.48,138.44,31.3684189]
[1641723658002,4.09372943,138.45,138.44,31.3684189]
[1641723658198,10.15812937,138.45,138.44,2.62494759]
[1641723660404,10.15812937,138.45,138.4,23.9898]
[1641723661201,4.09372943,138.45,138.4,23.9898]
[1641723661403,4.09329702,138.43,138.41,25.84866447]
[1641723662504,4.09434745,138.42,138.41,25.84866447]
[1641723665206,4.745e-05,138.42,138.41,50.84866447]
[1641723665410,6.14207328,138.45,138.4,1.65345313]
[1641723665607,6.14207328,138.45,138.4,1.90345313]
[1641723665806,6.14207328,138.45,138.42,10.8347]
[1641723666407,6.14217802,138.48,138.43,31.11335538]
[1641723666807,6.14217802,138.48,138.45,10.8359]
[1641723667009,6.06439994,138.47,138.45,10.8359]
[1641723667209,6.06439994,138.47,138.43,31.11335538]
[1641723667509,4.09415853,138.46,138.43,31.11335538]
[1641723668508,4.09415853,138.46,138.43,41.95155538]
[1641723669310,6.14217802,138.48,138.43,41.95155538]
[1641723673915,6.14719539,138.47,138.43,41.95155538]
[1641723675317,6.14719539,138.47,138.43,43.60500851]
[1641723675521,6.14719539,138.47,138.44,0.25]
[1641723675716,6.1468543,138.49,138.45,10.8321]
[1641723676118,6.1468543,138.49,138.46,3.0]
[1641723676320,6.1468543,138.49,138.47,26.72110612]
[1641723676519,6.1468543,138.49,138.48,3.0]
[1641723676719,6.14560337,138.51,138.49,10.8304]
[1641723676918,6.14560337,138.51,138.5,23.10029998]
[1641723678223,6.14560337,138.51,138.5,33.93179998]
[1641723678421,6.14560337,138.51,138.5,10.83150001]
[1641723680549,10.23242921,138.53,138.5,10.83150001]
[1641723680849,10.23242921,138.53,138.5,1e-08]
[1641723681350,6.06439994,138.52,138.5,1e-08]
[1641723681951,3.03219997,138.52,138.5,1e-08]
[1641723683151,158.56910131,138.55,138.5,1e-08]
[1641723683950,169.40310131,138.55,138.5,1e-08]
[1641723684650,4.08143388,138.54,138.5,1e-08]
[1641723685250,14.91603388,138.54,138.5,1e-08]
[1641723685852,4.07966387,138.53,138.5,1e-08]
[1641723686151,3.03219997,138.52,138.5,1e-08]
[1641723686351,13.86889997,138.52,138.47,22.7817]
[1641723686552,13.86889997,138.52,138.46,10.43]
[1641723686752,13.86889997,138.52,138.42,79.0281]
[1641723686952,13.86889997,138.52,138.42,101.63]
[1641723687354,38.27232865,138.52,138.43,28.29646242]
[1641723687555,13.36135684,138.51,138.43,28.29646242]
[1641723687756,10.8438,138.47,138.43,28.29646242]
[1641723687956,4.07915484,138.51,138.43,28.29646242]
[1641723688159,4.07950389,138.5,138.43,40.37991555]
[1641723688558,4.07950389,138.5,138.43,49.56536242]
[1641723688856,14.91780389,138.5,138.43,38.72646242]
[1641723689057,10.8383,138.5,138.43,38.72646242]
[1641723689557,10.8383,138.5,138.39,10.43]
[1641723689765,10.8383,138.5,138.36,34.0354]
[1641723689957,151.51680409,138.5,138.37,22.5712]
[1641723690357,4.07975673,138.49,138.38,29.55339251]
[1641723690560,10.8466,138.44,138.38,29.55339251]
[1641723691758,10.8466,138.44,138.38,41.63684564]
[1641723691958,10.8466,138.44,138.39,0.25]
[1641723692159,10.8466,138.44,138.39,10.43]
[1641723692359,16.46440653,138.49,138.39,10.43]
[1641723692961,7.08134696,138.48,138.39,10.43]
[1641723693160,7.08134696,138.48,138.4,10.8414]
[1641723693561,17.92314696,138.48,138.38,29.55339251]
[1641723693760,4.08139869,138.47,138.38,29.55339251]
[1641723694560,4.08139869,138.47,138.38,40.39699251]
[1641723695160,4.08139869,138.47,138.39,1.65345313]
[1641723695363,4.08139869,138.47,138.39,15.59345313]
[1641723695661,4.08139869,138.47,138.4,1.65345313]
[1641723695862,4.08139869,138.47,138.44,10.8369]
[1641723696063,6.11831056,138.53,138.45,29.80582403]
[1641723696863,4.08236377,138.54,138.45,29.80582403]
[1641723697061,4.08236377,138.54,138.48,10.8352]
[1641723697463,4.08236377,138.54,138.48,41.69488341]
[1641723697662,6.12315544,138.55,138.48,41.69488341]
[1641723698264,6.12235726,138.57,138.49,10.68]
[1641723698462,6.12235726,138.57,138.53,10.8308]
[1641723698666,6.12235726,138.57,138.54,28.18141635]
[1641723699065,4.08022086,138.59,138.54,28.18141635]
[1641723699564,4.08022086,138.59,138.54,39.01211635]
[1641723699964,4.08022086,138.59,138.54,10.83070001]
[1641723700667,3.0,138.58,138.54,1e-08]
[1641723700872,4.08022086,138.59,138.54,1e-08]
[1641723701074,4.08022086,138.59,138.54,10.43000001]
[1641723701378,2.086e-05,138.59,138.55,0.51]
[1641723701573,6.11593656,138.62,138.57,10.825]
[1641723701973,6.11593656,138.62,138.58,23.53248884]
[1641723702373,6.11593656,138.62,138.59,0.25]
[1641723702574,6.11593656,138.62,138.58,23.53248884]
[1641723702773,42.15432971,138.66,138.58,23.53248884]
[1641723702974,42.15432971,138.66,138.62,10.8243]
[1641723704579,36.04,138.66,138.62,10.8243]
[1641723706207,36.04,138.66,138.61,27.6866264]
[1641723706409,36.04,138.68,138.61,27.6866264]
[1641723706811,36.04,138.66,138.58,10.43]
[1641723707409,36.04,138.66,138.58,21.2578]
[1641723707809,36.04,138.66,138.59,25.23816027]
[1641723708009,3.0,138.65,138.59,25.23816027]
[1641723708409,3.0,138.65,138.59,36.06506027]
[1641723708609,36.04,138.66,138.59,37.7185134]
[1641723709012,36.04,138.66,138.59,36.06506027]
[1641723711616,3.0,138.65,138.59,36.06506027]
[1641723712018,46.8673,138.67,138.59,36.06506027]
[1641723712218,3.0,138.66,138.59,43.67106027]
[1641723712417,3.0,138.66,138.6,1.65345313]
[1641723712617,36.04,138.67,138.63,10.8221]
[1641723713217,36.04,138.67,138.63,37.28456777]
[1641723716922,36.04,138.73,138.63,37.28456777]
[1641723718022,36.04,138.73,138.64,3.0]
[1641723718226,36.04,138.73,138.63,38.9380209]
[1641723718426,36.04,138.73,138.63,37.28456777]
[1641723718925,64.29763698,138.73,138.63,37.28456777]
[1641723719326,74.72763698,138.73,138.63,26.46246777]
[1641723720329,36.04,138.71,138.59,33.0599]
[1641723720629,3.0,138.7,138.59,33.0599]
[1641723721428,36.04,138.69,138.6,30.68638106]
[1641723723027,46.8657,138.69,138.6,30.68638106]
[1641723724553,3.0,138.68,138.6,30.68638106]
[1641723724759,3.0,138.68,138.6,41.51258106]
[1641723728461,11.16020974,138.68,138.6,41.51258106]
[1641723728862,8.16020974,138.68,138.6,41.51258106]
[1641723729062,31.78312603,138.67,138.6,41.51258106]
[1641723729266,37.90436902,138.67,138.59,10.43]
[1641723729468,37.90436902,138.67,138.56,59.807]
[1641723729663,37.90436902,138.67,138.56,23.7189]
[1641723730266,37.90436902,138.67,138.56,51.24828708]
[1641723730564,8.16352805,138.66,138.56,51.24828708]
[1641723731064,8.16352805,138.66,138.56,23.7189]
[1641723731270,8.16352805,138.66,138.55,10.43]
[1641723731870,10.8306,138.62,138.55,21.2596]
[1641723732672,3.0,138.61,138.55,21.2596]
[1641723733470,40.26033003,138.63,138.55,21.2596]
[1641723733869,3.0,138.62,138.55,21.2596]
[1641723734278,13.8306,138.62,138.55,10.43]
[1641723735078,13.8306,138.62,138.55,8.99]
[1641723736973,13.8306,138.62,138.55,35.57801234]
[1641723737476,13.8306,138.62,138.55,26.58801234]
[1641723737678,3.0,138.62,138.55,26.58801234]
[1641723738376,3.0,138.62,138.55,37.41821234]
[1641723738776,13.8305,138.62,138.55,26.58801234]
[1641723739779,3.0,138.62,138.55,26.58801234]
[1641723740678,3.0,138.62,138.55,37.41811234]
[1641723741680,2.04039336,138.57,138.55,37.41811234]
[1641723742682,2.04039336,138.57,138.55,26.58801234]
[1641723743606,6.12824098,138.63,138.55,1.65345313]
[1641723743807,6.12824098,138.63,138.56,10.68]
[1641723744009,6.12824098,138.63,138.56,13.94]
[1641723744207,6.11788663,138.67,138.56,15.33345313]
[1641723744407,6.11788663,138.67,138.57,24.894]
[1641723744606,6.11788663,138.67,138.57,62.53124353]
[1641723744807,6.11788663,138.67,138.62,10.824]
[1641723745007,36.04,138.68,138.62,10.824]
[1641723745915,36.04,138.68,138.63,28.2026097]
[1641723747711,36.04,138.68,138.64,10.8231]
[1641723748612,36.04,138.69,138.61,10.43]
[1641723748812,46.8644,138.69,138.62,10.8247]
[1641723749112,36.04,138.69,138.62,10.8247]
[1641723749513,42.15768405,138.69,138.62,10.8247]
[1641723749713,42.15768405,138.69,138.62,34.84471812]
[1641723749913,42.15768405,138.69,138.63,0.25]
[1641723750113,36.04,138.69,138.62,24.02001812]
[1641723750615,63.13191691,138.69,138.61,46.5047]
[1641723750815,63.13191691,138.69,138.61,10.43]
[1641723751014,3.0,138.68,138.61,10.43]
[1641723751213,3.0,138.68,138.63,10.8235]
[1641723751415,63.13191691,138.69,138.63,10.8235]
[1641723751613,36.04,138.69,138.63,10.8235]
[1641723752315,46.8643,138.69,138.63,10.8235]
[1641723752514,36.04,138.69,138.62,10.8246]
[1641723752716,36.04,138.69,138.62,34.29133967]
[1641723753516,36.04,138.69,138.62,34.04133967]
[1641723753716,36.04,138.7,138.62,10.8246]
[1641723754517,46.8637,138.7,138.62,10.8246]
[1641723754718,46.8637,138.7,138.62,36.77006756]
[1641723755118,36.04,138.7,138.62,36.77006756]
[1641723756121,4.07384539,138.69,138.62,36.77006756]
[1641723756920,4.07384539,138.69,138.65,10.8222]
[1641723757121,4.07384539,138.69,138.65,40.28658567]
[1641723757320,40.11192286,138.7,138.65,40.28658567]
[1641723757819,40.11192286,138.7,138.61,10.43]
[1641723758019,50.93542286,138.7,138.59,10.43]
[1641723758221,40.11192286,138.7,138.59,10.43]
[1641723758419,40.11192286,138.7,138.59,12.08345313]
[1641723758622,4.07231109,138.69,138.59,12.08345313]
[1641723758819,4.07231109,138.69,138.6,26.24315583]
[1641723759020,4.07231109,138.69,138.64,10.8232]
[1641723759220,4.07231109,138.69,138.64,39.40467359]
[1641723759821,40.1110257,138.7,138.64,39.40467359]
[1641723760223,40.1110257,138.7,138.64,10.8232]
[1641723760423,45.447733,138.69,138.57,23.6652]
[1641723760625,51.374191,138.69,138.57,23.6652]
[1641723760923,15.334191,138.68,138.57,23.6652]
[1641723761125,4.07246041,138.66,138.57,23.6652]